Cogmind - Beta 13 @@@ ROGUE MODE // 2024.06.13 @ 13:14:44 Player: celerysam Result: Destroyed by Y-54 Guardian with Flak Gun Performance ------------- Evolutions (4) 2000 Regions Visited (7) 1400 Robots Destroyed (42) 210 Value Destroyed (1504) 1504 Prototype IDs (8) 160 Alien Tech Used (0) 0 Bonus (675) 675 TOTAL SCORE: 5949 Bonus ------- High Alert Combat Kills 71 Follower Combat Kills 912 Friendly Fire -308 Cogmind --------- Core Integrity 0/850 Matter 205/300 Energy 50/100 System Corruption 3% Temperature Cool (6) Movement Core (300) Ox5 Location -6/Factory Parts ------- > --- POWER (2) -------- (None) > --- PROPULSION (6) --- (None) > --- UTILITY (4) ------ Improved Targeting Computer System Shield > --- WEAPON (3) ------- Heavy Particle Cannon Heavy Particle Cannon Heavy Particle Cannon > --- INVENTORY (5) ---- Coolant Injector Authchip [Armor] Improved Trap Extractor (0/6) Improved Datajack Remote Datajack Peak State ------------ > --- POWER ------------ Heavy Ion Engine Cooled Ion Engine > --- PROPULSION ------- Light Treads Light Treads Light Treads Cooled Aerolev Unit Cooled Gravmag System > --- UTILITY ---------- Medium Storage Unit Improved Targeting Computer Remote Shield System Shield > --- WEAPON ----------- 01-MTF's Shockpuncher Coil Gun Katana > --- INVENTORY -------- Light Nuclear Core Advanced Heat Sink Advanced Sensor Array EM Disruption Field Authchip [Armor] Authchip [Weapon] Mini Grenade Launcher Improved Datajack Remote Datajack [Rating: 51] Favorites ----------- Power Cooled Ion Engine Engine Cooled Ion Engine Power Core Light Nuclear Core Propulsion Light Treads Treads Light Treads Leg Improved Aluminum Leg Hover Unit Cooled Gravmag System Flight Unit VTOL Module Utility System Shield Device ECM Suite Storage Large Storage Unit Processor Improved Targeting Computer Hackware System Shield Protection Medium Armor Plating Weapon Katana Energy Gun Shock Rifle Energy Cannon Heavy Particle Cannon Ballistic Gun Autogun Launcher Mini Grenade Launcher Slashing Weapon Katana Special Melee Weapon Improved Datajack Build | -11 -10 -9 -9 -8 -8 -8 -6 ------- Run | Yrd Mat Mat Min Mat Sto Rec Fac Slots Evolved 8 | . . 2 . 2 . . 4 Power 1 | . . . . 1 . . . Propulsion 4 | . . 2 . . . . 2 Utility 2 | . . . . 1 . . 1 Weapon 1 | . . . . . . . 1 Parts Attached 120 | 6 6 19 2 19 44 1 23 Power 20 | 1 . 3 . 5 9 . 2 Engine 17 | 1 . 3 . 5 7 . 1 Core 3 | . . . . . 2 . 1 Reactor . | . . . . . . . . Propulsion 35 | 2 . 9 . 4 18 . 2 Treads 18 | 2 . 5 . . 10 . 1 Leg 7 | . . 4 . . 3 . . Wheel . | . . . . . . . . Hover 2 | . . . . . 1 . 1 Flight 8 | . . . . 4 4 . . Utility 26 | 1 4 2 1 5 5 1 7 Device 13 | . . 1 1 4 1 . 6 Storage 5 | 1 2 . . 1 . 1 . Processor 3 | . . . . . 3 . . Hackware 2 | . . . . . 1 . 1 Protection 3 | . 2 1 . . . . . Artifact . | . . . . . . . . Weapon 39 | 2 2 5 1 5 12 . 12 Energy Gun 13 | . . 2 1 3 4 . 3 Energy Cannon 3 | . . . . . . . 3 Ballistic Gun 14 | 2 1 3 . 1 3 . 4 Ballistic Cannon . | . . . . . . . . Launcher 4 | . 1 . . 1 1 . 1 Special Weapon . | . . . . . . . . Impact Weapon . | . . . . . . . . Slashing Weapon 2 | . . . . . 2 . . Piercing Weapon . | . . . . . . . . Special Melee Weapon 3 | . . . . . 2 . 1 Unidentified Prototypes 6 | . . 1 . 1 3 . 1 Corrupted Parts 1 | . . . . . 1 . . System Corruption 8 | . . . . . 8 . . Parts Lost 32 | . 2 1 . . 7 . 22 Power 5 | . . . . . 1 . 4 Propulsion 12 | . . 1 . . 5 . 6 Utility 6 | . 1 . . . . . 5 Weapon 9 | . 1 . . . 1 . 7 Highest Loss Streak 14 | . 2 1 . . 3 . 14 To Critical Strikes . | . . . . . . . . Average Slot Usage (%) 92 | . 91 99 100 95 92 100 79 Engine 12 | . 14 11 11 18 12 18 10 Core 1 | . . . . . 4 . . Treads 18 | . 28 36 . . 13 27 14 Leg 8 | . . 7 44 27 5 . . Hover 3 | . . . . . 1 9 9 Flight 3 | . . . . 9 13 . . Device 4 | . . 9 11 16 . . 5 Storage 5 | . 14 11 11 7 . . 4 Processor 7 | . . . . . 17 17 6 Hackware 4 | . . . . . 8 9 6 Energy Gun 6 | . . 9 11 9 3 9 7 Ballistic Gun 6 | . 21 11 11 7 2 . 1 Launcher 1 | . 6 1 . . . . . Slashing Weapon 3 | . . . . . 3 9 5 Special Melee Weapon 1 | . . . . . 4 . 1 Naked Turns . | . . . . . . . . Heaviest Build 43 | 11 33 35 34 41 23 31 43 Greatest Support 80 | 40 40 80 52 52 80 60 60 Greatest Overweight (x) 8 | 3 . . . 2 2 . 8 Average Overweight (x) . | . . . . . . . . Largest Inventory Capacity 25 | 8 25 15 15 15 5 10 10 Average Capacity 9 | 7 13 15 15 13 5 5 9 Most Carried 15 | 6 11 15 15 15 5 7 10 Average Carried 8 | 4 8 14 14 12 4 5 8 Final Capacity 15 | 8 15 15 15 5 5 10 5 Final Carried 15 | 6 11 15 15 5 5 7 5 Class Distribution -------------------- 50% | Mutant 43% | Scavenger-Mutant 5% | Sprinter Dominant Class ---------------- Mutant | -10/Materials Mutant | -9/Materials Mutant | -9/Mines Mutant | -8/Materials Scavenger-Mutant | -8/Storage Scavenger-Mutant | -8/Recycling Scavenger-Mutant | -6/Factory Resources | -11 -10 -9 -9 -8 -8 -8 -6 ----------- Run | Yrd Mat Mat Min Mat Sto Rec Fac Matter Collected 1706 | 222 112 382 163 70 572 105 80 Remotely . | . . . . . . . . Salvage Created 1411 | . 101 459 116 70 242 52 371 Parts 89 | . 11 31 5 3 20 2 17 Haulers Intercepted . | . . . . . . . . Recyclers Shooed 1 | . . . . . 1 . . Parts Field Recycled . | . . . . . . . . Retrieved Matter . | . . . . . . . . Parts Self-Destructed . | . . . . . . . . Prevented . | . . . . . . . . Kills | -11 -10 -9 -9 -8 -8 -8 -6 ------- Run | Yrd Mat Mat Min Mat Sto Rec Fac Combat Hostiles Destroyed 38 | . 7 12 3 3 5 1 7 Melee 2 | . . . . . . . 2 Guns 30 | . 7 12 3 3 3 . 2 AOE 5 | . . . . . 2 1 2 Classes Destroyed 11 | . 2 2 1 . 3 . 3 Worker 1 | . . . . . 1 . . Builder 1 | . . . . . . . 1 Watcher 1 | . . 1 . . . . . Swarmer 12 | . 6 3 . 2 1 . . Grunt 15 | . 1 6 2 1 2 . 3 Brawler 1 | . . . 1 . . . . Duelist 2 | . . . . . 2 . . Protector 1 | . . . . . 1 . . Sentry 4 | . . 3 . . . 1 . Hunter 2 | . . . . . . . 2 Programmer 2 | . . . . . . . 2 Best Kill Streak 5 | . 5 3 2 2 2 1 3 Combat Bots Only 5 | . 5 3 2 2 2 1 3 Max Kills in Single Turn 2 | . 1 1 1 1 2 1 1 Gunslinging . | . . . . . . . . Exploded 2 | . . . . . 2 1 1 Melee 1 | . . . . . . . 1 Uniques/NPCs Destroyed . | . . . . . . . . Combat | -11 -10 -9 -9 -8 -8 -8 -6 -------- Run | Yrd Mat Mat Min Mat Sto Rec Fac Hostile Shots Fired 632 | . 98 89 19 18 87 8 313 Missed 187 | . 30 20 4 5 25 3 100 Damage Taken 5601 | . 583 818 217 174 1135 75 2599 Core 1409 | . 26 144 24 30 334 . 851 Absorbed by Shields 133 | . . . . . 32 . 101 Core Remaining (%) 70 | 100 89 . 58 . . 33 . Volleys Fired 145 | . 28 43 11 9 35 3 16 Largest 2 | . 2 2 2 2 1 1 2 Hottest 100 | . 50 88 88 84 61 50 100 Shots Fired 238 | . 48 83 22 18 37 4 26 Gun 230 | . 47 83 22 18 34 4 22 Cannon . | . . . . . . . . Launcher 8 | . 1 . . . 3 . 4 Special . | . . . . . . . . Kinetic 120 | . 47 43 11 9 6 . 4 Thermal 86 | . . 40 11 9 26 . . Explosive 8 | . 1 . . . 3 . 4 Electromagnetic 24 | . . . . . 2 4 18 Robot Hit Streak 11 | . 6 8 10 4 8 5 11 Robot Miss Streak 6 | . 6 3 2 3 2 . 2 Penetration Max . | . . . . . . . . Secondary Targets 1 | . . . 1 . . . . Max Gunslinging Chain 1 | . . . 1 . . . . Shots Hit Robots 176 | . 28 53 15 9 39 3 29 Core Hits 78 | . 9 20 5 4 20 2 18 Critical Kills . | . . . . . . . . Critical Parts Destroyed 1 | . 1 . . . . . . Critical Strikes 13 | . 1 7 . . 2 . 3 Burn 9 | . . 7 . . 2 . . Destroy 1 | . 1 . . . . . . Corrupt 2 | . . . . . . . 2 Sever 1 | . . . . . . . 1 Melee Attacks 29 | . . . . . 15 . 14 Impact . | . . . . . . . . Slashing 18 | . . . . . 4 . 14 Piercing . | . . . . . . . . Sneak Attacks 10 | . . . . . 7 . 3 Combat Hostiles 3 | . . . . . . . 3 Follow-up Attacks . | . . . . . . . . Damage Inflicted 4063 | . 406 823 231 172 1119 84 1228 Guns 2497 | . 307 823 231 172 527 44 393 Cannons . | . . . . . . . . Explosions 985 | . 99 . . . 541 40 305 Melee 575 | . . . . . 51 . 524 Ramming 6 | . . . . . . . 6 Kinetic 1028 | . 307 401 103 103 66 . 48 Thermal 1115 | . . 422 128 69 456 40 . Explosive 907 | . 99 . . . 503 . 305 Electromagnetic 432 | . . . . . 43 44 345 Impact . | . . . . . . . . Slashing 575 | . . . . . 51 . 524 Piercing . | . . . . . . . . Highest Corruption 8 | . . . . . 8 8 3 Average Corruption 5 | . . . . . 8 8 2 Corruption Purged . | . . . . . . . . Corruption Blocked . | . . . . . . . . Effects 51 | . . . . . 17 22 12 Message Errors 9 | . . . . . 2 3 4 Matter Fused 6 | . . . . . 1 5 . Heat Flow Errors 6 | . . . . . 3 1 2 Energy Discharges 8 | . . . . . 1 6 1 Parts Fused 2 | . . . . . 2 . . Data Loss (minor) 12 | . . . . . 4 6 2 Data Loss (major) 3 | . . . . . 2 . 1 Misfires 5 | . . . . . 2 1 2 Overload Shots . | . . . . . . . . Overflow Damage 113 | . 17 . . . 5 . 91 Projectiles . | . . . . . . . . Explosions 73 | . 17 . . . 5 . 51 Melee 40 | . . . . . . . 40 Knockbacks . | . . . . . . . . Impact . | . . . . . . . . Kinetic . | . . . . . . . . Secondary . | . . . . . . . . Self-Inflicted Damage 219 | . . . . . 40 . 179 Shots 5 | . . . . . 2 . 3 Rammed 2 | . . . . . . . 2 Targets Rammed 2 | . . . . . . . 2 Kicked . | . . . . . . . . Crushed . | . . . . . . . . Highest Temperature 266 | . 19 172 226 178 266 254 254 Average Temperature 65 | . 6 54 98 47 84 82 65 Received Heat Transfer 1293 | . 36 336 72 81 501 18 249 Effects 3 | . . . . . 3 . . Interference 3 | . . . . . 3 . . Siege Activations . | . . . . . . . . Robots Corrupted 1 | . . . . . . . 1 Combat Hostiles 1 | . . . . . . . 1 Parts Fried 3 | . . . . . . 1 2 Impact Corruptions . | . . . . . . . . Robots Melted . | . . . . . . . . Combat Hostiles . | . . . . . . . . Parts Melted 3 | . . 1 2 . . . . Heat Transferred 3060 | . . 1554 296 148 1062 . . Parts Sabotaged . | . . . . . . . . Parts Stolen . | . . . . . . . . Parts Stripped . | . . . . . . . . Power Chain Reactions 3 | . . . . . 1 1 1 Alert | -11 -10 -9 -9 -8 -8 -8 -6 ------- Run | Yrd Mat Mat Min Mat Sto Rec Fac Peak Influence 969 | . 164 241 134 90 969 384 159 Initial 377 | . . 68 49 . 37 377 80 Average 264 | . 85 103 108 37 775 223 67 Maximum Alert Level 3 | . . 1 . . 3 1 . Low Security (%) 69 | 100 100 99 100 100 8 30 100 Level 1 8 | . . . . . . 69 . Level 2 . | . . . . . 4 . . Level 3 20 | . . . . . 86 . . Level 4 . | . . . . . . . . Level 5 . | . . . . . . . . High Security . | . . . . . . . . Max Security . | . . . . . . . . Squads Dispatched 17 | . 1 5 . . 4 . 7 Investigation 5 | . . 2 . . . . 3 Extermination 2 | . . . . . . . 2 Reinforcement 7 | . 1 3 . . 1 . 2 Assault 2 | . . . . . 2 . . Garrison 1 | . . . . . 1 . . Intercept . | . . . . . . . . Searches Triggered . | . . . . . . . . Construction Impeded 1 | . . . . . . . 1 Haulers Reinforced . | . . . . . . . . Active Scanning Responses . | . . . . . . . . Cargo Convoy Interrupts . | . . . . . . . . Stealth | -11 -10 -9 -9 -8 -8 -8 -6 --------- Run | Yrd Mat Mat Min Mat Sto Rec Fac Distress Signals 6 | . 1 1 . 2 1 . 1 Communications Jammed . | . . . . . . . . Distress Signals . | . . . . . . . . Times Spotted 108 | . 11 25 3 10 40 1 18 Peak Tracking Total 6 | . 6 5 3 5 6 1 5 Tactical Retreats 7 | . . 4 . 2 1 . . Traps | -11 -10 -9 -9 -8 -8 -8 -6 ------- Run | Yrd Mat Mat Min Mat Sto Rec Fac Traps Triggered 7 | . . . . . 5 . 2 Indirectly . | . . . . . . . . Trap Hack Attempts . | . . . . . . . . Triggered . | . . . . . . . . Disarmed . | . . . . . . . . Reprogrammed . | . . . . . . . . Reused . | . . . . . . . . Traps Extracted . | . . . . . . . . Installed . | . . . . . . . . Triggered . | . . . . . . . . Machines | -11 -10 -9 -9 -8 -8 -8 -6 ---------- Run | Yrd Mat Mat Min Mat Sto Rec Fac Machines Disabled 11 | . . . 1 . 5 . 5 Max in Single Turn 5 | . . . 1 . 1 . 5 Garrison Access 1 | . . . . . 1 . . Machines Repaired . | . . . . . . . . Machines Dismantled . | . . . . . . . . Machines Sabotaged . | . . . . . . . . Overloaded Fab Kills . | . . . . . . . . Hacking | -11 -10 -9 -9 -8 -8 -8 -6 --------- Run | Yrd Mat Mat Min Mat Sto Rec Fac Machines Accessed 21 | . . 5 . 1 6 5 4 Terminals 16 | . . 4 . 1 6 4 1 Fabricators 2 | . . . . . . . 2 Repair Stations . | . . . . . . . . Recycling Units 3 | . . 1 . . . 1 1 Scanalyzers . | . . . . . . . . Garrison Access . | . . . . . . . . Total Hacks 57 | . . 14 . 1 17 14 11 Successful 22 | . . 4 . 1 7 6 4 Failed 35 | . . 10 . . 10 8 7 Catastrophic 8 | . . 2 . . 3 3 . Database Lockouts . | . . . . . . . . Manual 4 | . . . . . 3 1 . Terminals 44 | . . 11 . 1 17 13 2 Fabricators 8 | . . . . . . . 8 Repair Stations . | . . . . . . . . Recycling Units 5 | . . 3 . . . 1 1 Scanalyzers . | . . . . . . . . Garrison Access . | . . . . . . . . Terminal Hacks 17 | . . 3 . 1 7 5 1 Record 2 | . . . . . 1 1 . Part Schematic 1 | . . . . . . 1 . Prototype ID Bank 1 | . . . . . 1 . . Alert Level 6 | . . 2 . . 1 2 1 Unreport Threat 2 | . . . . . 1 1 . Locate Traps 1 | . . 1 . . . . . Assault Status 1 | . . . . . 1 . . Recall Reinforcements 1 | . . . . . 1 . . Registered Components 1 | . . . . . 1 . . Zone Layout 1 | . . . . 1 . . . Fabricator Hacks 2 | . . . . . . . 2 Load Schematic 2 | . . . . . . . 2 Repair Station Hacks . | . . . . . . . . Recycling Unit Hacks 3 | . . 1 . . . 1 1 Report Inventory 3 | . . 1 . . . 1 1 Scanalyzer . | . . . . . . . . Garrison Access Hacks . | . . . . . . . . Unauthorized Hacks . | . . . . . . . . Terminals . | . . . . . . . . Fabricators . | . . . . . . . . Repair Stations . | . . . . . . . . Recycling Units . | . . . . . . . . Scanalyzers . | . . . . . . . . Garrison Access . | . . . . . . . . Data Cores Recovered . | . . . . . . . . Used . | . . . . . . . . Hacking Detections 14 | . . 4 . 1 4 2 3 Full Trace Events 6 | . . 2 . . 1 1 2 Feedback Events . | . . . . . . . . Feedback Blocked . | . . . . . . . . Robot Schematics Acquired . | . . . . . . . . Robots Built . | . . . . . . . . Authchips . | . . . . . . . . Time . | . . . . . . . . Total Robot Build Rating . | . . . . . . . . Part Schematics Acquired 1 | . . . . . . 1 . Parts Built . | . . . . . . . . Authchips . | . . . . . . . . Time . | . . . . . . . . Total Part Build Rating . | . . . . . . . . Parts Repaired . | . . . . . . . . Time . | . . . . . . . . Parts Recycled . | . . . . . . . . Recycled Matter . | . . . . . . . . Retrieved Matter . | . . . . . . . . Retrieved Components . | . . . . . . . . Parts Scanalyzed . | . . . . . . . . Part Schematics Acquired . | . . . . . . . . Parts Damaged . | . . . . . . . . Bothacking | -11 -10 -9 -9 -8 -8 -8 -6 ------------ Run | Yrd Mat Mat Min Mat Sto Rec Fac Used RIF Installer . | . . . . . . . . Robots Hacked 6 | . . . . . 6 . . Non-combat 6 | . . . . . 6 . . Combat . | . . . . . . . . Robot Hacks Applied 7 | . . . . . 7 . . parse_system 2 | . . . . . 2 . . no_distress 4 | . . . . . 4 . . check_alert 1 | . . . . . 1 . . Relay Couplers Released 2 | . . . . . 2 . . Machine Destruction 2 | . . . . . 2 . . Fabnet Peak Effective % . | . . . . . . . . Robots Rewired . | . . . . . . . . Allies Hacked . | . . . . . . . . Hacks Repelled . | . . . . . . . . Allies | -11 -10 -9 -9 -8 -8 -8 -6 -------- Run | Yrd Mat Mat Min Mat Sto Rec Fac Total Allies 2 | . . . . . 2 . . Largest Group 2 | . . . . . 2 1 . Highest-Rated Group 122 | . . . . . 122 81 . Highest-Rated Ally 100 | . . . . . 100 81 . Total Orders . | . . . . . . . . Ally Attacks 68 | . . . . . 68 . . Total Damage 2487 | . . . . . 2487 . . Kills 33 | . . . . . 33 . . Allies Corrupted . | . . . . . . . . Allies Melted . | . . . . . . . . Intel | -11 -10 -9 -9 -8 -8 -8 -6 ------- Run | Yrd Mat Mat Min Mat Sto Rec Fac Robot Analysis Total . | . . . . . . . . Derelict Logs Recovered . | . . . . . . . . Drone Launches . | . . . . . . . . Drone Recoveries . | . . . . . . . . Exploration | -11 -10 -9 -9 -8 -8 -8 -6 ------------- Run | Yrd Mat Mat Min Mat Sto Rec Fac Turns Passed 4872 | 133 392 891 425 229 1171 575 1056 Spaces Moved 3328 | 65 189 475 310 201 1095 346 647 Core 156 | 15 . . . . . . 141 Treads 1723 | 50 189 373 . . 269 346 496 Legs 768 | . . 102 310 100 256 . . Wheels . | . . . . . . . . Hover 12 | . . . . . 2 . 10 Flight 669 | . . . . 101 568 . . Fastest Speed 26 | 50 160 120 120 26 26 160 46 Average Speed 121 | 154 160 151 120 76 84 160 143 Slowest Speed 450 | 200 160 160 120 186 210 160 450 Overloaded Moves . | . . . . . . . . Propulsion Burnouts . | . . . . . . . . Robots Hopped 3 | . . . . . 3 . . Cave-ins Triggered . | . . . . . . . . Exploration Rate (%) 43 | 4 40 42 66 26 94 61 17 Regions Visited 7 Branch Regions 3 Pre-discovered Areas . | . . . . . . . . Known Exits Taken . | . . . . . . . . Unknown Exits Taken 7 | 1 1 1 1 1 1 1 . Scrap Searched 2 | . . . 2 . . . . Spaces Dug . | . . . . . . . . Terrain Destroyed 75 | . 9 . . . 27 9 30 Melee . | . . . . . . . . Projectile . | . . . . . . . . AOE 75 | . 9 . . . 27 9 30 Terrain Rammed . | . . . . . . . . Walls Destroyed . | . . . . . . . . Machines Disabled . | . . . . . . . . Actions | -11 -10 -9 -9 -8 -8 -8 -6 --------- Run | Yrd Mat Mat Min Mat Sto Rec Fac Total 3894 | 98 236 574 343 266 1292 365 720 Wait 135 | 16 1 11 15 . 74 13 5 Move 3316 | 64 188 474 309 200 1089 345 647 Hop 2 | . . . . . 2 . . Pick Up 74 | 12 10 13 3 14 9 2 11 Fast Attach 36 | . 1 2 . 1 23 1 8 Attach 30 | 6 3 3 . 5 5 . 8 Detach 5 | . . . . 3 2 . . Swap 54 | . 2 14 2 13 16 . 7 Drop 66 | . 3 14 3 21 22 1 2 Fire 145 | . 28 43 11 9 35 3 16 Melee 29 | . . . . . 15 . 14 Ram 2 | . . . . . . . 2 Kick . | . . . . . . . . Crush . | . . . . . . . . Escape Stasis . | . . . . . . . . Rewire . | . . . . . . . . Trap . | . . . . . . . . Miscellaneous . | . . . . . . . . Route ------- -11/Scrapyard -10/Materials -9/Materials -9/Mines (discovered 2 exits: *Mat x2) -8/Materials -8/Storage (discovered 2 exits: [*Fac] / *Rec) -8/Recycling -6/Factory History --------- Turn | Location | Event 25 | -11/Scrapyard | Discovered new exit (range 15) 134 | -11/Scrapyard | Entered Materials 308 | -10/Materials | Build established: Mutant 451 | -10/Materials | Discovered new exit (range 14) 526 | -10/Materials | Entered another Materials area 526 | -9/Materials | Evolved 2 slots: Propulsion x2 932 | -9/Materials | Discovered new exit (range 15) 1417 | -9/Materials | Entered Mines 1601 | -9/Mines | Received a Rocket Launcher from a helpful Derelict 1727 | -9/Mines | Discovered new exit (range 15) 1832 | -9/Mines | Discovered new exit (range 9) 1842 | -9/Mines | Entered Materials 1842 | -8/Materials | Evolved 2 slots: Power x1, Utility x1 2070 | -8/Materials | Discovered new exit (range 5) 2071 | -8/Materials | Entered Storage 2086 | -8/Storage | Met 01-MTF 2173 | -8/Storage | Garrison activated, responded to threat 2249 | -8/Storage | Lost 3 parts (1p2n) 2274 | -8/Storage | Discovered new exit (range 5) 2276 | -8/Storage | Core integrity fell below 50% 2605 | -8/Storage | Build established: Scavenger-Mutant 2854 | -8/Storage | Discovered new exit (range 4) 2871 | -8/Storage | First assault squad dispatched 3056 | -8/Storage | Found 01-MTF's Shockpuncher 3242 | -8/Storage | Entered Recycling 3242 | -8/Recycling | Accompanied by 1 ally (01-MTF) 3248 | -8/Recycling | 01-MTF left 3674 | -8/Recycling | Discovered new exit (range 20) 3817 | -8/Recycling | Entered Factory 3817 | -6/Factory | Evolved 4 slots: Propulsion x2, Utility x1, Weapon x1 4752 | -6/Factory | Build established: Mutant 4771 | -6/Factory | Lost 14 parts (4p5n3u2w) 4786 | -6/Factory | Core integrity fell below 50% 4830 | -6/Factory | Core integrity fell below 20% 4873 | -6/Factory | Destroyed by Y-54 Guardian with Flak Gun Last Messages --------------- 04802_ Wall collapses. 04804_ Penetrated by Slug. 04805_ Slug penetrates Wall. 04805_ Gatling Laser destroyed. 04805_ Slug penetrates Wall. 04807_ Penetrated by Slug. 04808_ U-05 Engineer builds a Wall. 04829_ Penetrated by Slug. 04829_ Slug penetrates Wall. 04829_ Adv. Sensor Array destroyed. 04829_ Penetrated by Slug. 04835_ U-05 Engineer builds a Door. 04836_ Penetrated by Slug. 04836_ Katana destroyed. 04838_ Acquired Imp. Trap Extractor. 04843_ Adv. Heat Sink destroyed. 04846_ System corrupted: Component data lost. 04864_ Acquired Hvy. Particle Cannon. 04870_ System corrupted: Energy discharge (-32). 04870_ Acquired Hvy. Particle Cannon. Map ----- +----------------------------------------------------+ | """ """ # """ """ #??# # """ | | # ^ #### """"""" # """ | | ########### """ """ """# """"""" # """ | | # """ """ """# """"""" # "" | | # """ """ F"# """"""" # "" | | !+% ""# # | | # """ ###########??####### | | # """ # ????????# | | # "" """ # ?????????######## | | ! #""" # ????????????????? | | #"F """ # ????????????????? | | #""" """ # """ """????????????????? | | #""" """ # """ """ ???????????????? | | = #""" + """ """ #????????????? | | = # # #????????????? | | ########### # """ """ #????????????? | | ??????????######## # """ """????????????????? | | ?????????????????# # """ ""?????????????????? | | ?????????????????# # ???????????????? | | ?????????????????# ###########???????????????? | | ?????????????????# #?????????????????????????? | | ?????????????????# #?????????????????????????? | | ?????????????????# ##########????????????????? | | ?????????????????# # * #????????????????? | | ?????????????????# # #????????????????? | | ?????????????????# # @] ##???????????????? | | ?????????????????# + ] Y#???????????????? | | ?????????????????# # ] ##???????????????? | | ?????????????????# # #????????????????? | | ?????????????????# # #????????????????? | | ?????????????????# # #????????????????? | | ?????????????????# # #????????????????? | | ?????????????????# ##+#######????????????????? | | ?????????????????+ ?????????????????????????? | | ?????????????????# ?????????????????????????? | | ?????????????????# ?????????????????????????? | | ?????????????????# ?????????????????????????? | | ?????????????????#+#+###?????????????????????????? | | ?????????????????????????????????????????????????? | | ?????????????????????????????????????????????????? | | ?????????????????????????????????????????????????? | | ?????????????????????????????????????????????????? | | ?????????????????????????????????????????????????? | | ?????????????????????????????????????????????????? | | ?????????????????????????????????????????????????? | | ?????????????????????????????????????????????????? | | ?????????????????????????????????????????????????? | | ?????????????????????????????????????????????????? | | ?????????????????????????????????????????????????? | | ?????????????????????????????????????????????????? | +----------------------------------------------------+ Best States ------------- Heat Dissipation 56 Energy Generation 23 Energy Capacity 460 Matter Stores 300 Matter Capacity 300 Sight Range 20 Robot Scan Range 16 Terrain Scan Density 10 ECM Strength 1 Armor Coverage 225 Resistance: EM 25 Evasion (%) 64 Targeting Accuracy 6 Recoil Reduction 4 Defensive Hacking 10 Authchip Count 2 Item Schematics ----------------- Xenon Bombardment Thruster | -8/Recycling | Hacked Robot Schematics ------------------ None Fabricated ------------ Nothing Alien Tech Used ----------------- None Achievements -------------- None Challenges ------------ None Game ------ Seed ImpactThermicConstruct Manual? 0 Play Time 01:11:09 Cumulative 42.9 hours Start 2024.06.13 @ 11:50:54 End 2024.06.13 @ 13:14:44 Sessions 1 Manual Loads 0 Difficulty Rogue Special Mode None Game No. 66 Rogue 66 Adventurer 0 Explorer 0 Win Type - Total 0 Types 0/0/0/0/0/0/0/0/0 Lore% 22 Gallery% 36 Achievement% 25 Wizard Run 0 Options --------- Layout 0 ASCII 0 Keyboard 0 Movement Mouse Keybinds 0 Fullscreen 1 Font 24/Smallcaps Map View 76x50 Zoom Use 0% Tactical HUD 1 Map Filters NONE Filters NONE Steam 1 RUN: 69ff4385-0976-4c9d-81a9-2867af6c3831